[Event "December 12 Late 2023"]
[Site "https://www.chess.com"]
[Date "2023.12.12"]
[Round "4"]
[White "Storn, Justin"]
[Black "Shapiro, Viktor"]
[Result "1-0"]
[Board "95"]
[TimeControl "180+1"]
[WhiteFideId "30922720"]
[BlackFideId "4175700"]
[WhiteElo "2359"]
[BlackElo "2524"]
[WhiteTeam "USA"]
[BlackTeam "RUS"]
[WhiteClock "0:00:07"]
[BlackClock "0:00:01"]

1. Nf3 {[%clk 0:03:00]}  Nf6 {[%clk 0:02:59]} 2. g3 {[%clk 0:03:01]}  c5 {[%clk 0:02:59]} 3. Bg2 {[%clk 0:03:01]}  g6 {[%clk 0:02:59]} 4. O-O {[%clk 0:03:01]}  Bg7 {[%clk 0:03:00]} 5. c4 {[%clk 0:02:56]}  O-O {[%clk 0:03:00]} 6. Nc3 {[%clk 0:02:55]}  Nc6 {[%clk 0:02:59]} 7. d3 {[%clk 0:02:51]}  d6 {[%clk 0:02:59]} 8. a3 {[%clk 0:02:51]}  a6 {[%clk 0:02:59]} 9. Rb1 {[%clk 0:02:50]}  Rb8 {[%clk 0:02:59]} 10. b4 {[%clk 0:02:50]}  cxb4 {[%clk 0:03:00]} 11. axb4 {[%clk 0:02:51]}  b5 {[%clk 0:03:00]} 12. cxb5 {[%clk 0:02:49]}  axb5 {[%clk 0:03:01]} 13. Be3 {[%clk 0:02:34]}  e5 {[%clk 0:02:55]} 14. d4 {[%clk 0:02:25]}  e4 {[%clk 0:02:50]} 15. Nd2 {[%clk 0:02:20]}  d5 {[%clk 0:02:50]} 16. f3 {[%clk 0:02:15]}  Bf5 {[%clk 0:02:16]} 17. fxe4 {[%clk 0:01:44]}  dxe4 {[%clk 0:02:16]} 18. Nb3 {[%clk 0:01:01]}  Ng4 {[%clk 0:02:12]} 19. Bf4 {[%clk 0:01:01]}  Nxd4 {[%clk 0:01:50]} 20. h3 {[%clk 0:00:42]}  Qb6 {[%clk 0:01:35]} 21. Kh1 {[%clk 0:00:18]}  Nxb3 {[%clk 0:01:10]} 22. hxg4 {[%clk 0:00:18]}  Rbc8 {[%clk 0:00:41]} 23. Nd5 {[%clk 0:00:17]}  Qb7 {[%clk 0:00:19]} 24. gxf5 {[%clk 0:00:16]}  Nd4 {[%clk 0:00:18]} 25. f6 {[%clk 0:00:12]}  Qxd5 {[%clk 0:00:16]} 26. fxg7 {[%clk 0:00:12]}  Rfe8 {[%clk 0:00:16]} 27. e3 {[%clk 0:00:11]}  g5 {[%clk 0:00:08]} 28. Qxd4 {[%clk 0:00:09]}  Qxd4 {[%clk 0:00:08]} 29. exd4 {[%clk 0:00:10]}  gxf4 {[%clk 0:00:09]} 30. gxf4 {[%clk 0:00:09]}  f5 {[%clk 0:00:09]} 31. Bh3 {[%clk 0:00:09]}  Rcd8 {[%clk 0:00:07]} 32. Rbd1 {[%clk 0:00:09]}  Kxg7 {[%clk 0:00:06]} 33. Bxf5 {[%clk 0:00:08]}  e3 {[%clk 0:00:07]} 34. Rfe1 {[%clk 0:00:08]}  Rf8 {[%clk 0:00:06]} 35. Bd3 {[%clk 0:00:07]}  Rxf4 {[%clk 0:00:06]} 36. Bxb5 {[%clk 0:00:07]}  Rfxd4 {[%clk 0:00:07]} 37. Rxd4 {[%clk 0:00:07]}  Rxd4 {[%clk 0:00:07]} 38. Rb1 {[%clk 0:00:06]}  Rd2 {[%clk 0:00:07]} 39. Kg1 {[%clk 0:00:06]}  Kf6 {[%clk 0:00:07]} 40. Kf1 {[%clk 0:00:06]}  Ke5 {[%clk 0:00:07]} 41. Rb3 {[%clk 0:00:06]}  Kd4 {[%clk 0:00:07]} 42. Be2 {[%clk 0:00:05]}  Rc2 {[%clk 0:00:05]} 43. Ke1 {[%clk 0:00:05]}  Rc1+ {[%clk 0:00:04]} 44. Bd1 {[%clk 0:00:06]}  h5 {[%clk 0:00:04]} 45. b5 {[%clk 0:00:06]}  Rc7 {[%clk 0:00:04]} 46. b6 {[%clk 0:00:06]}  Rb7 {[%clk 0:00:04]} 47. Bf3 {[%clk 0:00:07]}  Rb8 {[%clk 0:00:04]} 48. b7 {[%clk 0:00:07]}  h4 {[%clk 0:00:04]} 49. Rb4+ {[%clk 0:00:07]}  Kc5 {[%clk 0:00:01]} 50. Rxh4 {[%clk 0:00:07]} 1-0

[Event "December 12 Late 2023"]
[Site "https://www.chess.com"]
[Date "2023.12.12"]
[Round "4"]
[White "Tikhonov, Viacheslav"]
[Black "Khokhlova, Daria"]
[Result "1-0"]
[Board "96"]
[TimeControl "180+1"]
[WhiteFideId "44196407"]
[BlackFideId "24182729"]
[WhiteElo "2517"]
[BlackElo "2349"]
[WhiteTeam "RUS"]
[BlackTeam "FID"]
[WhiteClock "0:00:26"]
[BlackClock "0:00:09"]

1. e4 {[%clk 0:03:00]}  c5 {[%clk 0:02:59]} 2. Nf3 {[%clk 0:03:00]}  d6 {[%clk 0:02:59]} 3. Nc3 {[%clk 0:03:00]}  Nf6 {[%clk 0:02:59]} 4. e5 {[%clk 0:03:00]}  dxe5 {[%clk 0:02:59]} 5. Nxe5 {[%clk 0:03:01]}  a6 {[%clk 0:02:47]} 6. g3 {[%clk 0:03:00]}  Qd6 {[%clk 0:02:47]} 7. f4 {[%clk 0:02:53]}  Nc6 {[%clk 0:02:44]} 8. Nc4 {[%clk 0:02:47]}  Qc7 {[%clk 0:02:19]} 9. Ne3 {[%clk 0:02:31]}  e6 {[%clk 0:02:14]} 10. Bg2 {[%clk 0:02:30]}  Be7 {[%clk 0:02:10]} 11. a4 {[%clk 0:02:30]}  O-O {[%clk 0:02:08]} 12. O-O {[%clk 0:02:30]}  b6 {[%clk 0:02:07]} 13. d3 {[%clk 0:02:27]}  Bb7 {[%clk 0:02:07]} 14. Bd2 {[%clk 0:02:15]}  Nd4 {[%clk 0:02:06]} 15. Ne4 {[%clk 0:02:07]}  b5 {[%clk 0:01:45]} 16. c3 {[%clk 0:01:59]}  Nf5 {[%clk 0:01:44]} 17. Nxf5 {[%clk 0:01:51]}  exf5 {[%clk 0:01:45]} 18. Nxf6+ {[%clk 0:01:47]}  Bxf6 {[%clk 0:01:46]} 19. axb5 {[%clk 0:01:43]}  Bxg2 {[%clk 0:01:39]} 20. Kxg2 {[%clk 0:01:44]}  axb5 {[%clk 0:01:32]} 21. Qf3 {[%clk 0:01:41]}  Rad8 {[%clk 0:01:27]} 22. Rad1 {[%clk 0:01:30]}  Rd7 {[%clk 0:01:24]} 23. Be3 {[%clk 0:01:18]}  Rfd8 {[%clk 0:01:22]} 24. Bf2 {[%clk 0:01:18]}  Rd5 {[%clk 0:01:14]} 25. Rd2 {[%clk 0:01:12]}  R8d7 {[%clk 0:01:08]} 26. Rfd1 {[%clk 0:01:10]}  Qd8 {[%clk 0:01:07]} 27. d4 {[%clk 0:00:49]}  cxd4 {[%clk 0:01:06]} 28. Bxd4 {[%clk 0:00:49]}  g6 {[%clk 0:00:39]} 29. Qe3 {[%clk 0:00:48]}  Bxd4 {[%clk 0:00:39]} 30. Rxd4 {[%clk 0:00:47]}  Rxd4 {[%clk 0:00:39]} 31. Rxd4 {[%clk 0:00:47]}  Rxd4 {[%clk 0:00:40]} 32. Qxd4 {[%clk 0:00:47]}  Qxd4 {[%clk 0:00:24]} 33. cxd4 {[%clk 0:00:46]}  Kf8 {[%clk 0:00:24]} 34. Kf3 {[%clk 0:00:33]}  Ke7 {[%clk 0:00:25]} 35. Ke3 {[%clk 0:00:29]}  Kd6 {[%clk 0:00:25]} 36. Kd3 {[%clk 0:00:30]}  Kd5 {[%clk 0:00:25]} 37. Kc3 {[%clk 0:00:29]}  f6 {[%clk 0:00:14]} 38. Kb4 {[%clk 0:00:27]}  Kxd4 {[%clk 0:00:13]} 39. Kxb5 {[%clk 0:00:27]}  g5 {[%clk 0:00:12]} 40. b4 {[%clk 0:00:23]}  gxf4 {[%clk 0:00:13]} 41. gxf4 {[%clk 0:00:24]}  Ke4 {[%clk 0:00:12]} 42. Kc5 {[%clk 0:00:20]}  Kxf4 {[%clk 0:00:13]} 43. b5 {[%clk 0:00:21]}  Ke3 {[%clk 0:00:13]} 44. b6 {[%clk 0:00:22]}  f4 {[%clk 0:00:14]} 45. b7 {[%clk 0:00:23]}  f3 {[%clk 0:00:14]} 46. b8=Q {[%clk 0:00:23]}  f2 {[%clk 0:00:14]} 47. Qb5 {[%clk 0:00:24]}  f5 {[%clk 0:00:14]} 48. Qf1 {[%clk 0:00:24]}  f4 {[%clk 0:00:14]} 49. Kd5 {[%clk 0:00:25]}  f3 {[%clk 0:00:14]} 50. Ke5 {[%clk 0:00:26]}  h5 {[%clk 0:00:09]} 51. h4 {[%clk 0:00:26]} 1-0

[Event "December 12 Late 2023"]
[Site "https://www.chess.com"]
[Date "2023.12.12"]
[Round "4"]
[White "Reprintsev, Alexander"]
[Black "Ward, Ieuan C"]
[Result "1-0"]
[Board "98"]
[TimeControl "180+1"]
[WhiteFideId "14100541"]
[BlackFideId "406627"]
[WhiteElo "2515"]
[BlackElo "2348"]
[WhiteTeam "UKR"]
[BlackTeam "ENG"]
[WhiteClock "0:00:52"]
[BlackClock "0:00:04"]

1. e4 {[%clk 0:02:53]}  c5 {[%clk 0:02:59]} 2. b3 {[%clk 0:02:53]}  d5 {[%clk 0:02:59]} 3. exd5 {[%clk 0:02:52]}  Qxd5 {[%clk 0:02:59]} 4. Nc3 {[%clk 0:02:52]}  Qd6 {[%clk 0:02:58]} 5. Ba3 {[%clk 0:02:46]}  Nd7 {[%clk 0:02:48]} 6. Nf3 {[%clk 0:02:46]}  Ngf6 {[%clk 0:02:46]} 7. d4 {[%clk 0:02:45]}  Qc7 {[%clk 0:02:28]} 8. Nb5 {[%clk 0:02:24]}  Qb6 {[%clk 0:02:18]} 9. dxc5 {[%clk 0:02:10]}  Nxc5 {[%clk 0:02:11]} 10. Qd4 {[%clk 0:02:08]}  e6 {[%clk 0:02:05]} 11. O-O-O {[%clk 0:02:07]}  Be7 {[%clk 0:01:19]} 12. Nd6+ {[%clk 0:02:02]}  Bxd6 {[%clk 0:01:13]} 13. Qxd6 {[%clk 0:02:01]}  Qxd6 {[%clk 0:01:09]} 14. Rxd6 {[%clk 0:02:01]}  Nce4 {[%clk 0:01:03]} 15. Bb5+ {[%clk 0:02:01]}  Bd7 {[%clk 0:01:02]} 16. Bxd7+ {[%clk 0:02:00]}  Nxd7 {[%clk 0:01:02]} 17. Rd4 {[%clk 0:01:57]}  Nef6 {[%clk 0:00:53]} 18. Rhd1 {[%clk 0:01:52]}  O-O-O {[%clk 0:00:53]} 19. Ng5 {[%clk 0:01:51]}  Ne5 {[%clk 0:00:48]} 20. Bb2 {[%clk 0:01:40]}  Rxd4 {[%clk 0:00:33]} 21. Bxd4 {[%clk 0:01:37]}  Nc6 {[%clk 0:00:33]} 22. Nxf7 {[%clk 0:01:33]}  Rf8 {[%clk 0:00:31]} 23. Nd6+ {[%clk 0:01:29]}  Kc7 {[%clk 0:00:31]} 24. Nb5+ {[%clk 0:01:22]}  Kb8 {[%clk 0:00:31]} 25. Bc5 {[%clk 0:01:20]}  Rh8 {[%clk 0:00:11]} 26. Bd6+ {[%clk 0:01:18]}  Kc8 {[%clk 0:00:10]} 27. f3 {[%clk 0:01:19]}  Nd5 {[%clk 0:00:10]} 28. Re1 {[%clk 0:01:08]}  Kd7 {[%clk 0:00:09]} 29. Bg3 {[%clk 0:01:07]}  a6 {[%clk 0:00:08]} 30. Nd6 {[%clk 0:01:03]}  b5 {[%clk 0:00:08]} 31. Ne4 {[%clk 0:01:01]}  Nd8 {[%clk 0:00:05]} 32. Nc5+ {[%clk 0:01:01]}  Kc6 {[%clk 0:00:05]} 33. Nxe6 {[%clk 0:01:00]}  Nxe6 {[%clk 0:00:04]} 34. Rxe6+ {[%clk 0:01:00]}  Kb7 {[%clk 0:00:03]} 35. Rd6 {[%clk 0:01:00]}  Nc3 {[%clk 0:00:02]} 36. Rd7+ {[%clk 0:00:59]}  Kb6 {[%clk 0:00:03]} 37. Rxg7 {[%clk 0:00:59]}  Nxa2+ {[%clk 0:00:02]} 38. Kb2 {[%clk 0:00:59]}  Nb4 {[%clk 0:00:03]} 39. Bf2+ {[%clk 0:00:59]}  Ka5 {[%clk 0:00:04]} 40. Rb7 {[%clk 0:00:53]}  Rc8 {[%clk 0:00:04]} 41. Bb6# {[%clk 0:00:52]} 1-0

[Event "December 12 Late 2023"]
[Site "https://www.chess.com"]
[Date "2023.12.12"]
[Round "4"]
[White "Krzywda, Andrzej"]
[Black "Gerola, Fausto"]
[Result "0-1"]
[Board "99"]
[TimeControl "180+1"]
[WhiteFideId "1114565"]
[BlackFideId "845175"]
[WhiteElo "2513"]
[BlackElo "2343"]
[WhiteTeam "POL"]
[BlackTeam "ITA"]
[WhiteClock "0:00:00"]
[BlackClock "0:00:06"]

1. e4 {[%clk 0:03:00]}  e5 {[%clk 0:02:56]} 2. Nf3 {[%clk 0:03:01]}  Nc6 {[%clk 0:02:56]} 3. Bb5 {[%clk 0:03:01]}  a6 {[%clk 0:02:56]} 4. Ba4 {[%clk 0:03:02]}  Nf6 {[%clk 0:02:55]} 5. O-O {[%clk 0:03:02]}  b5 {[%clk 0:02:54]} 6. Bb3 {[%clk 0:03:02]}  Nxe4 {[%clk 0:02:54]} 7. d4 {[%clk 0:03:02]}  d5 {[%clk 0:02:53]} 8. dxe5 {[%clk 0:03:01]}  Be6 {[%clk 0:02:54]} 9. c3 {[%clk 0:03:01]}  Nc5 {[%clk 0:02:53]} 10. Bc2 {[%clk 0:03:01]}  Be7 {[%clk 0:02:52]} 11. Nbd2 {[%clk 0:03:00]}  d4 {[%clk 0:02:46]} 12. Nb3 {[%clk 0:02:54]}  dxc3 {[%clk 0:02:35]} 13. bxc3 {[%clk 0:02:50]}  Qxd1 {[%clk 0:02:11]} 14. Rxd1 {[%clk 0:02:50]}  Rd8 {[%clk 0:01:56]} 15. Be3 {[%clk 0:02:41]}  Na4 {[%clk 0:01:43]} 16. Rxd8+ {[%clk 0:02:23]}  Nxd8 {[%clk 0:01:37]} 17. Nbd4 {[%clk 0:02:11]}  Nxc3 {[%clk 0:01:30]} 18. a4 {[%clk 0:02:02]}  b4 {[%clk 0:01:28]} 19. Nxe6 {[%clk 0:01:53]}  Nxe6 {[%clk 0:01:28]} 20. a5 {[%clk 0:01:51]}  O-O {[%clk 0:01:27]} 21. Bd3 {[%clk 0:01:51]}  Ra8 {[%clk 0:00:55]} 22. Nd2 {[%clk 0:01:51]}  Bc5 {[%clk 0:00:47]} 23. Bc4 {[%clk 0:01:46]}  Bxe3 {[%clk 0:00:47]} 24. fxe3 {[%clk 0:01:47]}  Nc5 {[%clk 0:00:42]} 25. Rf1 {[%clk 0:01:45]}  Rf8 {[%clk 0:00:37]} 26. Nb3 {[%clk 0:01:35]}  Nxb3 {[%clk 0:00:34]} 27. Bxb3 {[%clk 0:01:36]}  g6 {[%clk 0:00:32]} 28. Bc4 {[%clk 0:01:34]}  Kg7 {[%clk 0:00:30]} 29. Bxa6 {[%clk 0:01:33]}  Ra8 {[%clk 0:00:28]} 30. Bc4 {[%clk 0:01:33]}  Rxa5 {[%clk 0:00:27]} 31. Rxf7+ {[%clk 0:01:33]}  Kh6 {[%clk 0:00:28]} 32. Rxc7 {[%clk 0:01:33]}  Rxe5 {[%clk 0:00:28]} 33. Bg8 {[%clk 0:01:30]}  Rxe3 {[%clk 0:00:23]} 34. Rxh7+ {[%clk 0:01:29]}  Kg5 {[%clk 0:00:23]} 35. Rb7 {[%clk 0:01:28]}  Re4 {[%clk 0:00:21]} 36. Kf2 {[%clk 0:01:26]}  Rd4 {[%clk 0:00:19]} 37. Ke3 {[%clk 0:01:21]}  Rg4 {[%clk 0:00:19]} 38. g3 {[%clk 0:01:20]}  Nd1+ {[%clk 0:00:18]} 39. Ke2 {[%clk 0:01:20]}  Nc3+ {[%clk 0:00:18]} 40. Kf3 {[%clk 0:01:20]}  Rd4 {[%clk 0:00:17]} 41. Ke3 {[%clk 0:01:20]}  Rg4 {[%clk 0:00:17]} 42. Rb6 {[%clk 0:01:16]}  Nd1+ {[%clk 0:00:15]} 43. Ke2 {[%clk 0:01:15]}  Nc3+ {[%clk 0:00:15]} 44. Kf3 {[%clk 0:01:16]}  Rd4 {[%clk 0:00:15]} 45. Ke3 {[%clk 0:01:15]}  Rg4 {[%clk 0:00:16]} 46. Bf7 {[%clk 0:01:10]}  Kh6 {[%clk 0:00:15]} 47. Kf3 {[%clk 0:01:07]}  Rd4 {[%clk 0:00:15]} 48. Rxg6+ {[%clk 0:01:06]}  Kh7 {[%clk 0:00:15]} 49. Rb6 {[%clk 0:01:06]}  Nd1 {[%clk 0:00:14]} 50. g4 {[%clk 0:00:56]}  Kg7 {[%clk 0:00:15]} 51. Be6 {[%clk 0:00:54]}  Rd2 {[%clk 0:00:12]} 52. h4 {[%clk 0:00:51]}  Nb2 {[%clk 0:00:09]} 53. g5 {[%clk 0:00:46]}  Nd3 {[%clk 0:00:09]} 54. Ke3 {[%clk 0:00:34]}  Rd1 {[%clk 0:00:09]} 55. Ke2 {[%clk 0:00:34]}  Nb2 {[%clk 0:00:10]} 56. Rxb4 {[%clk 0:00:32]}  Rd6 {[%clk 0:00:09]} 57. Bf5 {[%clk 0:00:24]}  Nd1 {[%clk 0:00:09]} 58. Rb7+ {[%clk 0:00:23]}  Kf8 {[%clk 0:00:10]} 59. Rd7 {[%clk 0:00:16]}  Nc3+ {[%clk 0:00:10]} 60. Kf3 {[%clk 0:00:16]}  Rc6 {[%clk 0:00:09]} 61. Kg4 {[%clk 0:00:15]}  Ne2 {[%clk 0:00:08]} 62. Ra7 {[%clk 0:00:11]}  Rc4+ {[%clk 0:00:08]} 63. Kh5 {[%clk 0:00:09]}  Rf4 {[%clk 0:00:08]} 64. Bd3 {[%clk 0:00:05]}  Nd4 {[%clk 0:00:07]} 65. g6 {[%clk 0:00:04]}  Ne6 {[%clk 0:00:06]} 66. Ra8+ {[%clk 0:00:02]}  Kg7 {[%clk 0:00:06]} 67. Ra7+ {[%clk 0:00:03]}  Kf8 {[%clk 0:00:06]} 68. Bb5 {[%clk 0:00:02]}  Rf5+ {[%clk 0:00:05]} 69. Kh6 {[%clk 0:00:02]}  Rxb5 {[%clk 0:00:06]} 70. g7+ {[%clk 0:00:00]}  Nxg7 {[%clk 0:00:06]} 0-1

[Event "December 12 Late 2023"]
[Site "https://www.chess.com"]
[Date "2023.12.12"]
[Round "4"]
[White "Munoz Sanchez, Miguel"]
[Black "Chylewski, Patryk"]
[Result "1/2-1/2"]
[Board "100"]
[TimeControl "180+1"]
[WhiteFideId "3600734"]
[BlackFideId "1186191"]
[WhiteElo "2340"]
[BlackElo "2512"]
[WhiteTeam "ECU"]
[BlackTeam "POL"]
[WhiteClock "0:00:04"]
[BlackClock "0:00:04"]

1. d4 {[%clk 0:03:00]}  Nf6 {[%clk 0:02:56]} 2. Nf3 {[%clk 0:03:00]}  g6 {[%clk 0:02:55]} 3. g3 {[%clk 0:03:00]}  Bg7 {[%clk 0:02:54]} 4. Bg2 {[%clk 0:03:00]}  O-O {[%clk 0:02:55]} 5. O-O {[%clk 0:03:00]}  d6 {[%clk 0:02:55]} 6. c4 {[%clk 0:03:00]}  Nbd7 {[%clk 0:02:35]} 7. Nc3 {[%clk 0:02:59]}  e5 {[%clk 0:02:35]} 8. e4 {[%clk 0:02:40]}  c6 {[%clk 0:02:19]} 9. dxe5 {[%clk 0:02:26]}  dxe5 {[%clk 0:02:17]} 10. Qc2 {[%clk 0:02:20]}  Qc7 {[%clk 0:02:16]} 11. b3 {[%clk 0:02:19]}  Re8 {[%clk 0:01:59]} 12. Rd1 {[%clk 0:02:17]}  Bf8 {[%clk 0:01:55]} 13. Bb2 {[%clk 0:02:03]}  a5 {[%clk 0:01:50]} 14. h4 {[%clk 0:01:50]}  Nc5 {[%clk 0:01:40]} 15. Rd2 {[%clk 0:01:38]}  Bg4 {[%clk 0:01:31]} 16. Rad1 {[%clk 0:01:34]}  Ne6 {[%clk 0:01:16]} 17. Na4 {[%clk 0:01:20]}  Bxf3 {[%clk 0:01:14]} 18. Bxf3 {[%clk 0:01:20]}  Bb4 {[%clk 0:01:14]} 19. Rd3 {[%clk 0:01:15]}  Rad8 {[%clk 0:00:35]} 20. c5 {[%clk 0:01:15]}  Rxd3 {[%clk 0:00:26]} 21. Rxd3 {[%clk 0:01:14]}  Nd4 {[%clk 0:00:18]} 22. Bxd4 {[%clk 0:01:09]}  exd4 {[%clk 0:00:19]} 23. Rxd4 {[%clk 0:01:00]}  Qe5 {[%clk 0:00:17]} 24. Rd1 {[%clk 0:00:55]}  Nxe4 {[%clk 0:00:10]} 25. Bxe4 {[%clk 0:00:46]}  Qxe4 {[%clk 0:00:11]} 26. Qxe4 {[%clk 0:00:46]}  Rxe4 {[%clk 0:00:11]} 27. Rd7 {[%clk 0:00:46]}  Re2 {[%clk 0:00:05]} 28. Rxb7 {[%clk 0:00:45]}  Rxa2 {[%clk 0:00:02]} 29. Rb6 {[%clk 0:00:45]}  Be1 {[%clk 0:00:02]} 30. Rxc6 {[%clk 0:00:42]}  Bxf2+ {[%clk 0:00:02]} 31. Kf1 {[%clk 0:00:37]}  Bxg3 {[%clk 0:00:03]} 32. h5 {[%clk 0:00:34]}  gxh5 {[%clk 0:00:02]} 33. Ra6 {[%clk 0:00:29]}  h4 {[%clk 0:00:02]} 34. Nc3 {[%clk 0:00:21]}  Rc2 {[%clk 0:00:02]} 35. Ne4 {[%clk 0:00:21]}  Bf4 {[%clk 0:00:01]} 36. Rf6 {[%clk 0:00:19]}  Be3 {[%clk 0:00:01]} 37. c6 {[%clk 0:00:14]}  Bd4 {[%clk 0:00:01]} 38. Rh6 {[%clk 0:00:14]}  Kg7 {[%clk 0:00:01]} 39. Rxh4 {[%clk 0:00:13]}  Rxc6 {[%clk 0:00:01]} 40. Ng5 {[%clk 0:00:10]}  h6 {[%clk 0:00:01]} 41. Nxf7 {[%clk 0:00:01]}  Kxf7 {[%clk 0:00:01]} 42. Rxd4 {[%clk 0:00:01]}  Re6 {[%clk 0:00:01]} 43. Kg2 {[%clk 0:00:01]}  Rb6 {[%clk 0:00:01]} 44. Rd3 {[%clk 0:00:01]}  Rb4 {[%clk 0:00:01]} 45. Kg3 {[%clk 0:00:01]}  Kf6 {[%clk 0:00:02]} 46. Rc3 {[%clk 0:00:02]}  Ke6 {[%clk 0:00:02]} 47. Rc6+ {[%clk 0:00:02]}  Kd5 {[%clk 0:00:02]} 48. Rxh6 {[%clk 0:00:03]}  Rxb3+ {[%clk 0:00:02]} 49. Kf2 {[%clk 0:00:02]}  a4 {[%clk 0:00:01]} 50. Ra6 {[%clk 0:00:01]}  a3 {[%clk 0:00:01]} 51. Ke2 {[%clk 0:00:02]}  Kc4 {[%clk 0:00:02]} 52. Kd2 {[%clk 0:00:02]}  Kb4 {[%clk 0:00:02]} 53. Kc2 {[%clk 0:00:03]}  Rb2+ {[%clk 0:00:02]} 54. Kc1 {[%clk 0:00:03]}  Rh2 {[%clk 0:00:02]} 55. Ra8 {[%clk 0:00:02]}  Rh1+ {[%clk 0:00:02]} 56. Kc2 {[%clk 0:00:02]}  Rh2+ {[%clk 0:00:02]} 57. Kb1 {[%clk 0:00:02]}  Kb3 {[%clk 0:00:03]} 58. Rb8+ {[%clk 0:00:02]}  Ka4 {[%clk 0:00:03]} 59. Ra8+ {[%clk 0:00:02]}  Kb3 {[%clk 0:00:04]} 60. Rb8+ {[%clk 0:00:03]}  Kc3 {[%clk 0:00:04]} 61. Rc8+ {[%clk 0:00:03]}  Kb4 {[%clk 0:00:05]} 62. Rb8+ {[%clk 0:00:04]}  Kc5 {[%clk 0:00:05]} 63. Rc8+ {[%clk 0:00:04]}  Kb5 {[%clk 0:00:03]} 64. Ra8 {[%clk 0:00:03]}  Kb4 {[%clk 0:00:03]} 65. Rb8+ {[%clk 0:00:04]}  Kc3 {[%clk 0:00:03]} 66. Rc8+ {[%clk 0:00:04]}  Kb3 {[%clk 0:00:04]} 67. Rb8+ {[%clk 0:00:04]} 1/2-1/2

[Event "December 12 Late 2023"]
[Site "https://www.chess.com"]
[Date "2023.12.12"]
[Round "4"]
[White "YurasovMat-2012"]
[Black "Gerbelli Neto, Eduardo"]
[Result "1-0"]
[Board "101"]
[TimeControl "180+1"]
[BlackFideId "2103281"]
[WhiteElo "2511"]
[BlackElo "2339"]
[BlackTeam "BRA"]
[WhiteClock "0:01:50"]
[BlackClock "0:00:16"]

1. e4 {[%clk 0:03:00]}  e5 {[%clk 0:02:58]} 2. Nf3 {[%clk 0:02:59]}  Nc6 {[%clk 0:02:58]} 3. Bc4 {[%clk 0:02:57]}  Nf6 {[%clk 0:02:58]} 4. d3 {[%clk 0:02:54]}  Bc5 {[%clk 0:02:58]} 5. O-O {[%clk 0:02:54]}  d6 {[%clk 0:02:58]} 6. c3 {[%clk 0:02:54]}  a5 {[%clk 0:02:57]} 7. h3 {[%clk 0:02:53]}  O-O {[%clk 0:02:56]} 8. Re1 {[%clk 0:02:53]}  h6 {[%clk 0:02:57]} 9. d4 {[%clk 0:02:53]}  Ba7 {[%clk 0:02:53]} 10. Bf1 {[%clk 0:02:51]}  Re8 {[%clk 0:02:50]} 11. d5 {[%clk 0:02:50]}  Ne7 {[%clk 0:02:48]} 12. c4 {[%clk 0:02:50]}  Ng6 {[%clk 0:02:48]} 13. Nc3 {[%clk 0:02:49]}  c6 {[%clk 0:02:46]} 14. Be3 {[%clk 0:02:47]}  Nh5 {[%clk 0:02:17]} 15. Qd2 {[%clk 0:02:45]}  Nhf4 {[%clk 0:02:15]} 16. Rad1 {[%clk 0:02:43]}  c5 {[%clk 0:01:16]} 17. Kh2 {[%clk 0:02:39]}  Qf6 {[%clk 0:01:09]} 18. Ng1 {[%clk 0:02:23]}  Bb6 {[%clk 0:01:09]} 19. g3 {[%clk 0:02:23]}  Nh5 {[%clk 0:01:07]} 20. Be2 {[%clk 0:02:23]}  Nhf4 {[%clk 0:01:01]} 21. Bf1 {[%clk 0:02:19]}  Nh5 {[%clk 0:00:59]} 22. Qe2 {[%clk 0:02:08]}  Nhf4 {[%clk 0:00:49]} 23. gxf4 {[%clk 0:02:07]}  exf4 {[%clk 0:00:48]} 24. Bd2 {[%clk 0:02:02]}  Ne5 {[%clk 0:00:45]} 25. Nf3 {[%clk 0:02:00]}  g5 {[%clk 0:00:40]} 26. Nxe5 {[%clk 0:01:57]}  Qxe5 {[%clk 0:00:41]} 27. f3 {[%clk 0:01:56]}  a4 {[%clk 0:00:31]} 28. a3 {[%clk 0:01:55]}  Ba5 {[%clk 0:00:31]} 29. Nb5 {[%clk 0:01:51]}  Bxd2 {[%clk 0:00:31]} 30. Qxd2 {[%clk 0:01:51]}  h5 {[%clk 0:00:28]} 31. Qc3 {[%clk 0:01:51]}  Qe7 {[%clk 0:00:27]} 32. e5 {[%clk 0:01:50]}  dxe5 {[%clk 0:00:24]} 33. d6 {[%clk 0:01:51]}  Qe6 {[%clk 0:00:16]} 34. Nc7 {[%clk 0:01:50]} 1-0

[Event "December 12 Late 2023"]
[Site "https://www.chess.com"]
[Date "2023.12.12"]
[Round "4"]
[White "Senft, Sean"]
[Black "Mazzilli, Piero"]
[Result "1-0"]
[Board "102"]
[TimeControl "180+1"]
[WhiteFideId "2044960"]
[BlackFideId "807087"]
[WhiteElo "2504"]
[BlackElo "2331"]
[WhiteTeam "USA"]
[BlackTeam "ITA"]
[WhiteClock "0:00:21"]
[BlackClock "0:00:08"]

1. d4 {[%clk 0:02:54]}  d5 {[%clk 0:02:59]} 2. c4 {[%clk 0:02:54]}  e6 {[%clk 0:03:00]} 3. Nc3 {[%clk 0:02:54]}  Nf6 {[%clk 0:02:58]} 4. cxd5 {[%clk 0:02:55]}  exd5 {[%clk 0:02:58]} 5. Bg5 {[%clk 0:02:55]}  Be7 {[%clk 0:02:58]} 6. e3 {[%clk 0:02:56]}  c6 {[%clk 0:02:58]} 7. Bd3 {[%clk 0:02:56]}  O-O {[%clk 0:02:56]} 8. Nf3 {[%clk 0:02:56]}  Nbd7 {[%clk 0:02:56]} 9. Qc2 {[%clk 0:02:56]}  Re8 {[%clk 0:02:53]} 10. O-O {[%clk 0:02:57]}  Nf8 {[%clk 0:02:52]} 11. Ne5 {[%clk 0:02:55]}  Ng6 {[%clk 0:02:37]} 12. f4 {[%clk 0:02:53]}  Ne4 {[%clk 0:02:13]} 13. Bxe7 {[%clk 0:02:28]}  Qxe7 {[%clk 0:02:13]} 14. Nxe4 {[%clk 0:02:21]}  dxe4 {[%clk 0:02:07]} 15. Bxe4 {[%clk 0:02:18]}  f6 {[%clk 0:01:40]} 16. Bxg6 {[%clk 0:01:29]}  hxg6 {[%clk 0:01:37]} 17. Nxg6 {[%clk 0:01:24]}  Qxe3+ {[%clk 0:01:37]} 18. Kh1 {[%clk 0:01:24]}  Qxd4 {[%clk 0:01:30]} 19. Rad1 {[%clk 0:01:17]}  Qb4 {[%clk 0:01:26]} 20. a3 {[%clk 0:01:10]}  Qa5 {[%clk 0:01:24]} 21. b4 {[%clk 0:01:06]}  Qh5 {[%clk 0:00:45]} 22. f5 {[%clk 0:00:53]}  Kh7 {[%clk 0:00:25]} 23. Rf3 {[%clk 0:00:37]}  Bxf5 {[%clk 0:00:17]} 24. Rxf5 {[%clk 0:00:29]}  Qe2 {[%clk 0:00:12]} 25. Rh5+ {[%clk 0:00:23]}  Kg8 {[%clk 0:00:12]} 26. Qxe2 {[%clk 0:00:19]}  Rxe2 {[%clk 0:00:11]} 27. Rh8+ {[%clk 0:00:20]}  Kf7 {[%clk 0:00:08]} 28. Rxa8 {[%clk 0:00:21]} 1-0